fUSD/lending_fUSD_20240215
["ID","MTS","AMOUNT","RATE_DAILY","PERIOD"]
[314079332,1707962583996,-96502.13950834,0.000229,2]
[314079333,1707962597091,628.208,0.000222,2]
[314079334,1707962823227,199.27,0.0003,120]
[314079335,1707962878093,535.23,0.000222,2]
[314079341,1707962946109,-173.0,0.00022362,2]
[314079345,1707962985276,168.0,0.00022262,2]
[314079359,1707963031615,-444.2644,0.000227,2]
[314079360,1707963031624,-157.52454323,0.00022799,2]
[314079361,1707963031634,-150.0,0.00022799,2]
[314079362,1707963031643,-13496.7566035,0.000228,2]
[314079363,1707963031657,-32881.39932208,0.000228,2]
[314079364,1707963031669,-364.22818617,0.000228,2]
[314079365,1707963031681,-68675.44108825,0.000228,2]
[314079366,1707963031690,-900.28324651,0.0002283,2]
[314079367,1707963031699,-157.52454319,0.00022832,2]
[314079368,1707963031708,-157.52454319,0.00022865,2]
[314079369,1707963031718,-157.52454319,0.00022897,2]
[314079370,1707963031727,-3497.86049166,0.000229,2]
[314079371,1707963031736,-63212.0116325,0.000229,2]
[314079372,1707963031748,-287.75294492,0.000229,2]
[314079373,1707963031759,-2185.77181383,0.000229,2]
[314079374,1707963031788,-113480.48449584,0.000229,2]
[314079375,1707963031800,-4435.21099454,0.000229,2]
[314079376,1707963031818,-893.33356765,0.000229,2]
[314079390,1707963037646,-176.65152953,0.00022699,2]
[314079391,1707963037655,-5649.25246453,0.000229,2]
[314079392,1707963037666,-3314.44483306,0.000229,2]
[314079393,1707963037678,-996.14533574,0.000229,2]
[314079394,1707963037824,-50545.59191739,0.000229,2]
[314079395,1707963037833,-187.00838226,0.0002293,2]
[314079396,1707963037842,-157.52454319,0.0002293,2]
[314079397,1707963037851,-189.70263293,0.0002293,2]
[314079398,1707963037860,-27610.47644616,0.00023,2]
[314079399,1707963037885,-1667669.03614369,0.00023,2]
[314079400,1707963037894,-215.81164393,0.0002303,2]
[314079401,1707963037903,-2483.63,0.0002303,2]
[314079402,1707963037912,-4661.48903128,0.0002313,2]
[314079403,1707963037922,-828.86,0.00023243,2]
[314079404,1707963037931,-532.74,0.000236,2]
[314079405,1707963037941,-168.0,0.00023905,2]
[314079406,1707963037949,-499.99,0.00024005,2]
[314079407,1707963037958,-582.79,0.00024005,2]
[314079408,1707963037967,-327.32,0.00024005,2]
[314079409,1707963037976,-2566.85,0.00024629,2]
[314079410,1707963037986,-200.0,0.00024664,2]
[314079412,1707963037995,-180.71,0.00024675,2]
[314079414,1707963038003,-5017.63,0.00024716,2]
[314079416,1707963038013,-509.05,0.00024724,2]
[314079418,1707963038023,-1852.42,0.00024724,2]
[314079420,1707963038032,-207.88,0.00024752,2]
[314079422,1707963038041,-250.0,0.00024752,2]
[314079424,1707963038050,-1000.0,0.00024813,2]
[314079426,1707963038059,-500.0,0.00024823,2]
[314079428,1707963038069,-4651.46,0.00024835,2]
[314079430,1707963038078,-250.0,0.00024864,2]
[314079431,1707963038087,-372.78028012,0.000249,2]
[314079433,1707963038096,-250.0,0.00024952,2]
[314079436,1707963038106,-1611.96,0.0002496,2]
[314079438,1707963038115,-742.1,0.00024964,2]
[314079439,1707963038124,-2812.76,0.00024982,2]
[314079441,1707963038133,-2822.02564004,0.00025,2]
[314079443,1707963038143,-10000.0,0.00025031,2]
[314079461,1707963038289,-210.0,0.00025079,2]
[314079463,1707963038300,-23423.17427864,0.0002509,2]
[314079464,1707963038311,-11826.83524482,0.0002509,2]
[314079465,1707963038324,-154.89180211,0.0002509,2]
[314079466,1707963038333,-3138.41683993,0.000251,2]
[314079467,1707963038342,-7700.32,0.00025108,2]
[314079468,1707963038351,-2705.0,0.00025161,2]
[314079469,1707963038361,-494.84,0.00025183,2]
[314079470,1707963038370,-165.33,0.00025191,2]
[314079471,1707963038380,-2000.0,0.00025205,2]
[314079472,1707963038390,-1331.05,0.00025341,2]
[314079474,1707963038399,-509.72,0.00025356,2]
[314079475,1707963038408,-900.28324645,0.00025411,2]
[314079477,1707963038418,-200.0,0.00025414,2]
[314079479,1707963038428,-153.99,0.00025432,2]
[314079481,1707963038437,-1331.05,0.00025474,2]
[314079483,1707963038446,-164.54,0.00025502,2]
[314079485,1707963038455,-153.99,0.00025506,2]
[314079487,1707963038465,-828.86,0.00025507,2]
[314079490,1707963038474,-23900.0,0.00025519,2]
[314079492,1707963038484,-168.0,0.00025549,2]
[314079494,1707963038494,-153.99,0.00025579,2]
[314079496,1707963038504,-179.43,0.00025596,2]
[314079498,1707963038514,-1331.05,0.00025607,2]
[314079500,1707963038523,-1047.62,0.00025612,2]
[314079502,1707963038532,-153.99,0.00025653,2]
[314079504,1707963038541,-153.99,0.00025727,2]
[314079506,1707963038550,-1331.05,0.00025741,2]
[314079508,1707963038559,-153.99,0.000258,2]
[314079510,1707963038568,-153.99,0.00025874,2]
[314079512,1707963038577,-1331.05,0.00025874,2]
[314079514,1707963038586,-167.35,0.0002588,2]
[314079516,1707963038596,-153.99,0.00025947,2]
[314079518,1707963038605,-1331.05,0.00026007,2]
[314079520,1707963038614,-153.99,0.00026021,2]
[314079522,1707963038623,-150.0,0.00026079,2]
[314079524,1707963038633,-153.99,0.00026095,2]
[314079526,1707963038641,-1331.05,0.00026141,2]
[314079528,1707963038650,-153.99,0.00026168,2]
[314079530,1707963038660,-165.86,0.00026223,2]
[314079532,1707963038670,-153.99,0.00026242,2]
[314079534,1707963038679,-1410.89,0.00026248,2]
[314079536,1707963038688,-1331.05,0.00026274,2]
[314079537,1707963038697,-5217.63003277,0.000263,2]
[314079540,1707963038706,-153.99,0.00026315,2]
[314079542,1707963038716,-5017.63,0.0002636,2]
[314079544,1707963038725,-153.99,0.00026389,2]
[314079546,1707963038734,-1331.05,0.00026408,2]
[314079548,1707963038743,-153.99,0.00026463,2]
[314079550,1707963038752,-153.99,0.00026536,2]
[314079551,1707963038761,-1331.05,0.00026541,2]
[314079553,1707963038770,-300.0,0.00026575,2]
[314079555,1707963038779,-153.99,0.0002661,2]
[314079557,1707963038789,-509.72,0.00026624,2]
[314079560,1707963038798,-1331.05,0.00026674,2]
[314079561,1707963038807,-153.99,0.00026684,2]
[314079563,1707963038816,-153.99,0.00026757,2]
[314079565,1707963038827,-1331.05,0.00026808,2]
[314079567,1707963038835,-1331.05,0.00026941,2]
[314079570,1707963038845,-12933.65766113,0.00027,2]
[314079571,1707963038854,-201.453098,0.00027,4]
[314079573,1707963038863,-1331.05,0.00027074,2]
[314079576,1707963038873,-206.47,0.00027161,2]
[314079578,1707963038882,-168.0,0.00027193,2]
[314079580,1707963038891,-986.5828605,0.000272,2]
[314079582,1707963038900,-1331.05,0.00027208,2]
[314079583,1707963038909,-2888.01,0.00027268,2]
[314079586,1707963038920,-1331.05,0.00027341,2]
[314079587,1707963038929,-155.0,0.00027397,2]
[314079589,1707963038938,-26955.72,0.00027397,2]
[314079591,1707963038948,-548.72,0.00027397,2]
[314079594,1707963038957,-464.0,0.000274,7]
[314079595,1707963038966,-1331.05,0.00027474,2]
[314079597,1707963038975,-8252.05480815,0.000275,2]
[314079599,1707963038985,-26955.72,0.00027556,2]
[314079601,1707963038995,-293.0,0.00027587,2]
[314079604,1707963039005,-1331.05,0.00027608,2]
[314079606,1707963039015,-26955.72,0.00027714,2]
[314079608,1707963039024,-1331.05,0.00027741,2]
[314079609,1707963039033,-506.88,0.00027753,2]
[314079611,1707963039042,-828.86,0.00027771,2]
[314079613,1707963039051,-800.0,0.00027863,2]
[314079616,1707963039060,-26955.72,0.00027872,2]
[314079618,1707963039070,-1331.05,0.00027875,2]
[314079619,1707963039079,-509.72,0.00027891,2]
[314079621,1707963039088,-1000.0,0.00027915,2]
[314079623,1707963039097,-300.0,0.00027944,2]
[314079625,1707963039106,-900.28324645,0.00027993,3]
[314079627,1707963039115,-698220.2849542,0.00028,2]
[314079629,1707963039124,-5017.63,0.00028003,2]
[314079631,1707963039133,-167.35,0.00028016,2]
[314079633,1707963039142,-26955.72,0.0002803,2]
[314079635,1707963039151,-80577.00343332,0.000281,2]
[314079637,1707963039160,-26955.72,0.00028189,2]
[314079639,1707963039171,-2888.01,0.00028233,2]
[314079641,1707963039180,-26955.72,0.00028347,2]
[314079643,1707963039190,-26955.72,0.00028505,2]
[314079645,1707963039199,-26955.72,0.00028664,2]
[314079647,1707963039211,-155.0,0.00028767,2]
[314079649,1707963039220,-26955.72,0.00028822,2]
[314079651,1707963039230,-168.0,0.00028837,2]
[314079653,1707963039240,-1752.40621785,0.00029,15]
[314079655,1707963039248,-800.0,0.00029123,2]
[314079657,1707963039257,-27264.16344356,0.0002913,2]
[314079659,1707963039266,-509.72,0.00029159,2]
[314079661,1707963039275,-2888.01,0.00029197,2]
[314079663,1707963039285,-180.71,0.00029611,2]
[314079665,1707963039294,-5017.63,0.00029647,2]
[314079667,1707963039305,-200.3192966,0.0002985,2]
[314079669,1707963039317,-30341.26682441,0.000299,2]
[314079671,1707963039327,-6428.27226892,0.0002996,2]
[314079673,1707963039335,-751.11492811,0.0003,2]
[314079675,1707963039345,-344.44496608,0.0003,2]
[314079677,1707963039355,-1446.17701131,0.0003,2]
[314079679,1707963039364,-222.0,0.0003,2]
[314079681,1707963039374,-333.0,0.0003001,2]
[314079683,1707963039383,-828.86,0.00030035,2]
[314079685,1707963039394,-297.7278907,0.000301,2]
[314079687,1707963039403,-15632.72,0.00030137,2]
[314079689,1707963039412,-158.55,0.00030137,2]
[314079691,1707963039425,-155.0,0.00030137,2]
[314079693,1707963039434,-167.35,0.00030151,2]
[314079695,1707963039443,-2888.01,0.00030162,2]
[314079697,1707963039452,-411.0,0.00030345,2]
[314079699,1707963039461,-509.72,0.00030427,2]
[314079701,1707963039471,-168.0,0.00030481,2]
[314079703,1707963039480,-900.28324645,0.00030574,5]
[314079705,1707963039489,-152.11669873,0.00031,30]
[314079708,1707963039503,-7657.55931575,0.00031,2]
[314079710,1707963039517,-372.25725722,0.00031,2]
[314079713,1707963039531,-1000.0,0.00031017,2]
[314079715,1707963039546,-2888.01,0.00031126,2]
[314079718,1707963039557,-5017.63,0.00031291,2]
[314079720,1707963039568,-155.0,0.00031507,2]
[314079722,1707963039581,-169.36,0.00031644,2]
[314079725,1707963039592,-180.0,0.00031644,2]
[314079727,1707963039605,-229.82442759,0.00032,2]
[314079729,1707963039618,-229.82442759,0.00032,2]
[314079732,1707963039632,-229.82442759,0.00032,2]
[314079734,1707963039646,-229.82442759,0.00032,2]
[314079736,1707963039657,-229.82442759,0.00032,2]
[314079739,1707963039669,-229.82442759,0.00032,2]
[314079741,1707963039679,-229.82442759,0.00032,2]
[314079743,1707963039692,-229.82442759,0.00032,2]
[314079745,1707963039703,-229.82442759,0.00032,2]
[314079748,1707963039716,-229.82442759,0.00032,2]
[314079750,1707963039727,-229.82442759,0.00032,2]
[314079752,1707963039740,-229.82442759,0.00032,2]
[314079755,1707963039753,-229.82442759,0.00032,2]
[314079757,1707963039765,-229.82442759,0.00032,2]
[314079759,1707963039775,-229.82442759,0.00032,2]
[314079761,1707963039785,-229.82442759,0.00032,2]
[314079764,1707963039798,-229.82442759,0.00032,2]
[314079766,1707963039811,-229.82442759,0.00032,2]
[314079768,1707963039822,-229.82442759,0.00032,2]
[314079771,1707963039835,-229.82442759,0.00032,2]
[314079773,1707963039846,-229.82442759,0.00032,2]
[314079775,1707963039858,-229.82442759,0.00032,2]
[314079777,1707963039869,-229.82442759,0.00032,2]
[314079780,1707963039881,-229.82442759,0.00032,2]
[314079782,1707963039893,-229.82442759,0.00032,2]
[314079784,1707963039904,-229.82442759,0.00032,2]
[314079787,1707963039917,-229.82442759,0.00032,2]
[314079789,1707963039930,-229.82442759,0.00032,2]
[314079792,1707963039943,-229.82442759,0.00032,2]
[314079794,1707963039956,-229.82442759,0.00032,2]
[314079796,1707963039969,-2888.01,0.0003209,2]
[314079798,1707963039980,-2448.2900775,0.00032125,2]
[314079800,1707963039990,-168.0,0.00032125,2]
[314079802,1707963040000,-444.0,0.00032254,2]
[314079805,1707963040011,-828.86,0.00032299,2]
[314079807,1707963040023,-18101.66708939,0.00032677,7]
[314079811,1707963040034,-7671.40613961,0.00032677,7]
[314079813,1707963040045,-76061.91839557,0.00032677,7]
[314079816,1707963040057,-2766.15566333,0.00032677,7]
[314079818,1707963040069,-154.58,0.00032877,2]
[314079820,1707963040080,-157.30314006,0.00032877,2]
[314079822,1707963040090,-372.7802801,0.000329,2]
[314079825,1707963040100,-5017.63,0.00032935,2]
[314079827,1707963040109,-555.0,0.00033001,2]
[314079829,1707963040120,-2888.01,0.00033055,2]
[314079831,1707963040132,-1600.66159963,0.00033111,10]
[314079833,1707963040142,-900.28324645,0.00033156,6]
[314079835,1707963040152,-154.04,0.000335,2]
[314079837,1707963040163,-154.04,0.000335,2]
[314079840,1707963040175,-154.04,0.000335,2]
[314079842,1707963040186,-154.04,0.000335,2]
[314079844,1707963040196,-154.04,0.000335,2]
[314079846,1707963040208,-154.04,0.000335,2]
[314079849,1707963040219,-154.04,0.000335,2]
[314079850,1707963040229,-154.04,0.000335,2]
[314079851,1707963040239,-154.04,0.000335,2]
[314079852,1707963040250,-154.04,0.000335,2]
[314079853,1707963040261,-154.04,0.000335,2]
[314079854,1707963040271,-154.04,0.000335,2]
[314079855,1707963040281,-154.04,0.000335,2]
[314079856,1707963040292,-168.0,0.00033768,2]
[314079858,1707963040303,-155.45223205,0.000339,2]
[314079861,1707963040316,-155.45223204,0.000339,2]
[314079863,1707963040326,-155.45223204,0.000339,2]
[314079865,1707963040337,-1000.0,0.00034118,2]
[314079867,1707963040348,-3007.0,0.000342,3]
[314079869,1707963040360,-18208.0,0.000343,3]
[314079871,1707963040370,-256.54,0.00034521,2]
[314079874,1707963040381,-828.86,0.00034563,2]
[314079876,1707963040392,-5747.19842262,0.0003479,2]
[314079878,1707963040403,-5747.19842254,0.0003479,2]
[314079880,1707963040414,-5747.19842254,0.0003479,2]
[314079882,1707963040426,-5747.19842254,0.0003479,2]
[314079885,1707963040437,-5747.19842254,0.0003479,2]
[314079887,1707963040448,-5747.19842254,0.0003479,2]
[314079889,1707963040458,-1883.69487447,0.00034799,2]
[314079891,1707963040469,-1883.69487439,0.00034799,2]
[314079893,1707963040480,-1883.69487439,0.00034799,2]
[314079896,1707963040490,-1883.69487439,0.00034799,2]
[314079898,1707963040501,-1883.69487439,0.00034799,2]
[314079900,1707963040512,-1883.69487439,0.00034799,2]
[314079902,1707963040523,-1240.73886876,0.0003489,3]
[314079904,1707963040534,-1272.57842375,0.000349,2]
[314079906,1707963040545,-1272.57842368,0.000349,2]
[314079909,1707963040556,-1272.57842368,0.000349,2]
[314079911,1707963040567,-1272.57842368,0.000349,2]
[314079913,1707963040578,-1272.57842368,0.000349,2]
[314079915,1707963040589,-1272.57842368,0.000349,2]
[314079917,1707963040600,-1272.57842368,0.000349,2]
[314079920,1707963040611,-1272.57842368,0.000349,2]
[314079922,1707963040621,-742.1,0.00034949,2]
[314079924,1707963040631,-182.6494184,0.00035,2]
[314079926,1707963040642,-189.04780612,0.00035,2]
[314079928,1707963040653,-4308.44594517,0.00035,2]
[314079929,1707963040664,-203.0,0.00035219,2]
[314079930,1707963040677,-168.0,0.00035412,2]
[314079931,1707963040687,-2791.35,0.00035515,2]
[314079932,1707963040698,-3411.65,0.00035515,2]
[314079933,1707963040709,-1883.378,0.00035516,2]
[314079934,1707963040722,-46640.622,0.00035516,2]
[314079935,1707963040734,-16967.0499,0.00035516,2]
[314079936,1707963040745,-1272.57842368,0.00035562,2]
[314079937,1707963040756,-154.04,0.000356,3]
[314079938,1707963040768,-154.04,0.000356,3]
[314079939,1707963040779,-154.04,0.000356,3]
[314079940,1707963040790,-154.04,0.000356,3]
[314079941,1707963040801,-154.04,0.000356,3]
[314079942,1707963040813,-154.04,0.000356,3]
[314079943,1707963040824,-154.04,0.000356,3]
[314079944,1707963040835,-154.04,0.000356,3]
[314079945,1707963040846,-154.04,0.000356,3]
[314079946,1707963040858,-154.04,0.000356,3]
[314079947,1707963040869,-154.04,0.000356,3]
[314079948,1707963040882,-154.04,0.000356,3]
[314079949,1707963040894,-154.04,0.000356,3]
[314079950,1707963040908,-3295.040267,0.00035613,2]
[314079951,1707963040920,-526.94165787,0.00035616,7]
[314079952,1707963040932,-500.0,0.00035616,7]
[314079953,1707963041084,-516.2007566,0.00035616,7]
[314079954,1707963041115,-554.16866169,0.00035616,7]
[314079956,1707963041125,-500.0,0.00035616,7]
[314079957,1707963041136,-412.01477854,0.00035616,7]
[314079958,1707963041146,-500.0,0.00035616,7]
[314079959,1707963041156,-514.18308753,0.00035616,7]
[314079960,1707963041168,-500.0,0.00035616,7]
[314079961,1707963041177,-536.05780918,0.00035616,7]
[314079962,1707963041186,-500.0,0.00035616,7]
[314079963,1707963041194,-500.0,0.00035616,7]
[314079964,1707963041203,-519.96833958,0.00035616,7]
[314079965,1707963041212,-500.0,0.00035616,7]
[314079966,1707963041221,-500.0,0.00035616,7]
[314079967,1707963041230,-500.0,0.00035616,7]
[314079968,1707963041240,-510.07567485,0.00035616,7]
[314079969,1707963041251,-532.97656633,0.00035616,7]
[314079970,1707963041262,-500.0,0.00035616,7]
[314079971,1707963041273,-500.0,0.00035616,7]
[314079972,1707963041282,-500.0,0.00035616,2]
[314079973,1707963041291,-500.0,0.00035616,7]
[314079974,1707963041302,-507.39652665,0.00035616,7]
[314079975,1707963041311,-513.5583782,0.00035616,7]
[314079976,1707963041324,-500.0,0.00035616,7]
[314079977,1707963041333,-514.98808207,0.00035616,7]
[314079978,1707963041343,-544.70951211,0.00035616,7]
[314079979,1707963041354,-500.0,0.00035616,7]
[314079980,1707963041363,-500.0,0.00035616,7]
[314079981,1707963041372,-511.99434384,0.00035616,7]
[314079982,1707963041381,-520.66078611,0.00035616,7]
[314079983,1707963041392,-500.0,0.00035616,7]
[314079984,1707963041401,-500.0,0.00035616,7]
[314079985,1707963041411,-510.76620149,0.00035616,7]
[314079986,1707963041420,-516.37917183,0.00035616,7]
[314079987,1707963041429,-525.30196184,0.00035616,7]
[314079988,1707963041439,-561.61662551,0.00035616,7]
[314079989,1707963041449,-529.12303255,0.00035616,7]
[314079990,1707963041458,-500.0,0.00035616,7]
[314079991,1707963041467,-500.0,0.00035616,7]
[314079992,1707963041476,-514.83061348,0.00035616,7]
[314079993,1707963041486,-522.21103018,0.00035616,7]
[314079994,1707963041495,-500.0,0.00035616,7]
[314079995,1707963041504,-500.0,0.00035616,7]
[314079996,1707963041514,-530.86291692,0.00035616,7]
[314079997,1707963041523,-500.0,0.00035616,7]
[314079998,1707963041533,-518.822548,0.00035616,7]
[314079999,1707963041542,-500.0,0.00035616,7]
[314080000,1707963041552,-500.0,0.00035616,7]
[314080001,1707963041560,-513.42858354,0.00035616,7]
[314080002,1707963041570,-506.58485375,0.00035616,7]
[314080003,1707963041579,-526.14456712,0.00035616,7]
[314080004,1707963041588,-500.0,0.00035616,7]
[314080005,1707963041598,-505.69126226,0.00035616,7]
[314080006,1707963041608,-533.78762561,0.00035616,7]
[314080007,1707963041617,-197.69661819,0.00035616,7]
[314080008,1707963041629,-500.0,0.00035616,7]
[314080009,1707963041640,-515.52408951,0.00035616,7]
[314080010,1707963041649,-523.67164318,0.00035616,7]
[314080011,1707963041658,-542.49927847,0.00035616,7]
[314080012,1707963041667,-519.81650682,0.00035616,7]
[314080013,1707963041679,-500.0,0.00035616,7]
[314080014,1707963041690,-517.61200919,0.00035616,7]
[314080015,1707963041700,-491.86355155,0.00035616,7]
[314080016,1707963041710,-500.0,0.00035616,7]
[314080017,1707963041719,-500.0,0.00035616,7]
[314080018,1707963041728,-511.72117939,0.00035616,7]
[314080019,1707963041738,-500.0,0.00035616,7]
[314080020,1707963041748,-518.48608303,0.00035616,7]
[314080021,1707963041759,-244.08102835,0.00035616,7]
[314080022,1707963041769,-511.81594067,0.00035616,7]
[314080023,1707963041780,-517.31852926,0.00035616,7]
[314080024,1707963041791,-500.0,0.00035616,2]
[314080025,1707963041801,-587.62563878,0.00035616,7]
[314080026,1707963041811,-551.24743222,0.00035616,7]
[314080027,1707963041820,-522.04631991,0.00035616,7]
[314080028,1707963041830,-510.15675536,0.00035616,7]
[314080029,1707963041840,-500.0,0.00035616,7]
[314080030,1707963041850,-533.26277129,0.00035616,7]
[314080031,1707963041860,-522.3038993,0.00035616,7]
[314080032,1707963041869,-521.48439384,0.00035616,7]
[314080033,1707963041878,-584.2987502,0.00035616,7]
[314080034,1707963041891,-500.0,0.00035616,7]
[314080035,1707963041900,-510.64894492,0.00035616,7]
[314080036,1707963041910,-507.26248214,0.00035616,7]
[314080037,1707963041919,-516.07790513,0.00035616,7]
[314080038,1707963041929,-500.0,0.00035616,7]
[314080039,1707963041938,-500.0,0.00035616,7]
[314080040,1707963041947,-515.0744271,0.00035616,7]
[314080041,1707963041956,-500.0,0.00035616,7]
[314080042,1707963041965,-500.0,0.00035616,7]
[314080043,1707963041975,-500.0,0.00035616,7]
[314080044,1707963041985,-525.16476214,0.00035616,7]
[314080045,1707963041994,-500.0,0.00035616,7]
[314080046,1707963042003,-513.99335436,0.00035616,7]
[314080047,1707963042012,-513.68208637,0.00035616,7]
[314080048,1707963042021,-541.25465651,0.00035616,7]
[314080049,1707963042030,-500.0,0.00035616,7]
[314080050,1707963042039,-500.0,0.00035616,7]
[314080051,1707963042050,-500.0,0.00035616,7]
[314080052,1707963042060,-515.73610636,0.00035616,7]
[314080053,1707963042070,-503.32541758,0.00035616,7]
[314080054,1707963042079,-500.0,0.00035616,7]
[314080055,1707963042088,-500.0,0.00035616,7]
[314080056,1707963042097,-500.0,0.00035616,7]
[314080057,1707963042107,-511.74062332,0.00035616,7]
[314080058,1707963042118,-535.82399057,0.00035616,7]
[314080059,1707963042128,-645.52726567,0.00035616,7]
[314080060,1707963042137,-500.0,0.00035616,7]
[314080061,1707963042147,-509.0728229,0.00035616,7]
[314080062,1707963042159,-502.9539551,0.00035616,7]
[314080063,1707963042169,-524.10996981,0.00035616,7]
[314080064,1707963042179,-500.0,0.00035616,7]
[314080065,1707963042188,-515.7048019,0.00035616,7]
[314080066,1707963042197,-510.91051425,0.00035616,7]
[314080067,1707963042206,-503.17464348,0.00035616,7]
[314080068,1707963042215,-508.61759975,0.00035616,7]
[314080069,1707963042224,-544.87870165,0.00035616,7]
[314080070,1707963042233,-518.57860347,0.00035616,7]
[314080071,1707963042242,-500.0,0.00035616,7]
[314080072,1707963042252,-514.02194776,0.00035616,7]
[314080073,1707963042261,-528.92683781,0.00035616,7]
[314080074,1707963042270,-500.0,0.00035616,7]
[314080075,1707963042279,-505.17167283,0.00035616,7]
[314080077,1707963042289,-521.38201317,0.00035616,7]
[314080078,1707963042300,-503.67323854,0.00035616,7]
[314080080,1707963042309,-529.71461591,0.00035616,7]
[314080082,1707963042322,-500.0,0.00035616,7]
[314080083,1707963042332,-521.82588976,0.00035616,7]
[314080084,1707963042342,-520.97276046,0.00035616,7]
[314080085,1707963042352,-505.81673384,0.00035616,7]
[314080086,1707963042362,-500.0,0.00035616,7]
[314080087,1707963042372,-500.0,0.00035616,7]
[314080088,1707963042382,-507.93612907,0.00035616,7]
[314080089,1707963042392,-500.0,0.00035616,7]
[314080090,1707963042402,-503.3753072,0.00035616,7]
[314080091,1707963042411,-514.19340767,0.00035616,7]
[314080093,1707963042421,-515.39290728,0.00035616,7]
[314080095,1707963042431,-500.0,0.00035616,7]
[314080097,1707963042440,-500.0,0.00035616,7]
[314080099,1707963042450,-500.0,0.00035616,7]
[314080100,1707963042460,-492.14944971,0.00035616,7]
[314080101,1707963042470,-622.70929628,0.00035616,7]
[314080102,1707963042480,-500.0,0.00035616,7]
[314080103,1707963042491,-500.0,0.00035616,7]
[314080104,1707963042500,-500.0,0.00035616,7]
[314080105,1707963042510,-504.70462892,0.00035616,7]
[314080106,1707963042520,-500.0,0.00035616,7]
[314080107,1707963042529,-521.25274205,0.00035616,7]
[314080108,1707963042538,-514.69139054,0.00035616,7]
[314080109,1707963042548,-500.0,0.00035616,7]
[314080110,1707963042558,-520.8161377,0.00035616,7]
[314080111,1707963042567,-500.0,0.00035616,7]
[314080112,1707963042577,-522.65680342,0.00035616,7]
[314080113,1707963042587,-523.1913926,0.00035616,7]
[314080114,1707963042597,-500.0,0.00035616,7]
[314080115,1707963042606,-500.0,0.00035616,7]
[314080116,1707963042616,-561.20873274,0.00035616,7]
[314080117,1707963042626,-500.0,0.00035616,7]
[314080118,1707963042636,-623.65705456,0.00035616,7]
[314080119,1707963042646,-500.0,0.00035616,7]
[314080120,1707963042656,-500.0,0.00035616,7]
[314080121,1707963042666,-500.0,0.00035616,7]
[314080122,1707963042677,-521.05108576,0.00035616,7]
[314080123,1707963042686,-500.0,0.00035616,7]
[314080124,1707963042696,-539.21494036,0.00035616,7]
[314080125,1707963042706,-500.0,0.00035616,7]
[314080126,1707963042715,-503.76228321,0.00035616,7]
[314080127,1707963042724,-500.0,0.00035616,7]
[314080128,1707963042734,-500.0,0.00035616,7]
[314080129,1707963042744,-506.81351498,0.00035616,7]
[314080130,1707963042755,-522.10874906,0.00035616,7]
[314080131,1707963042765,-533.10416827,0.00035616,7]
[314080132,1707963042775,-506.35142436,0.00035616,7]
[314080133,1707963042784,-150.0,0.00035616,7]
[314080134,1707963042794,-523.2526565,0.00035616,7]
[314080135,1707963042805,-506.14815231,0.00035616,7]
[314080136,1707963042814,-550.74199097,0.00035616,7]
[314080137,1707963042824,-521.25867656,0.00035616,7]
[314080138,1707963042834,-150.0,0.00035616,7]
[314080139,1707963042845,-518.84090823,0.00035616,7]
[314080140,1707963042856,-500.0,0.00035616,7]
[314080141,1707963042867,-500.0,0.00035616,7]
[314080142,1707963042876,-511.99081516,0.00035616,7]
[314080143,1707963042885,-3137.26580194,0.00035616,7]
[314080144,1707963042894,-524.12743381,0.00035616,7]